fUST/lending_fUST_20250923
["ID","MTS","AMOUNT","RATE_DAILY","PERIOD"]
[387120598,1758587435157,-500.0,0.00019573,2]
[387120600,1758587435167,-323.51090604,0.00019573,2]
[387120602,1758587435176,-500.0,0.00019573,2]
[387120604,1758587435185,-500.0,0.00019573,2]
[387120606,1758587435194,-503.52506841,0.00019573,2]
[387120608,1758587435203,-500.0,0.00019573,2]
[387120610,1758587435212,-500.0,0.00019573,2]
[387120612,1758587435222,-500.0,0.00019573,2]
[387120614,1758587435232,-500.0,0.00019573,2]
[387120616,1758587435241,-500.0,0.00019573,2]
[387120618,1758587435250,-480.0,0.00019617,2]
[387120620,1758587435259,-480.0,0.00019617,2]
[387120622,1758587435268,-504.04,0.00019617,2]
[387120624,1758587435277,-480.0,0.00019618,2]
[387120626,1758587435287,-480.0,0.00019618,2]
[387120628,1758587435296,-480.0,0.00019618,2]
[387120630,1758587435305,-480.0,0.00019618,2]
[387120632,1758587435315,-480.0,0.00019618,2]
[387120634,1758587435325,-480.0,0.00019618,2]
[387120636,1758587435334,-222.46298829,0.00019618,2]
[387120638,1758587435343,-480.0,0.00019618,2]
[387120640,1758587435353,-480.0,0.00019618,2]
[387120642,1758587435363,-480.0,0.00019618,2]
[387120644,1758587435372,-377.37786475,0.00019618,2]
[387120646,1758587435381,-480.0,0.00019618,2]
[387120648,1758587435391,-480.0,0.00019618,2]
[387120650,1758587435401,-480.0,0.00019619,2]
[387120652,1758587435411,-480.0,0.00019619,2]
[387120654,1758587435421,-480.0,0.00019619,2]
[387120656,1758587435430,-480.0,0.00019619,2]
[387120658,1758587435439,-480.0,0.00019619,2]
[387120660,1758587435449,-728.79,0.00019619,2]
[387120662,1758587435460,-480.0,0.00019619,2]
[387120664,1758587435469,-480.0,0.00019619,2]
[387120666,1758587435478,-495.97,0.00019619,2]
[387120668,1758587435487,-480.0,0.00019619,2]
[387120670,1758587435497,-500.0,0.0001962,2]
[387120672,1758587435506,-151.0,0.0001962,2]
[387120674,1758587435516,-161.86067842,0.0001962,2]
[387120676,1758587435526,-151.0,0.0001962,2]
[387120678,1758587435536,-288.209064,0.0001962,2]
[387120680,1758587435545,-480.0,0.0001962,2]
[387120682,1758587435556,-500.0,0.0001962,2]
[387120684,1758587435566,-480.0,0.0001962,2]
[387120686,1758587435575,-480.0,0.0001962,2]
[387120688,1758587435584,-480.0,0.0001962,2]
[387120690,1758587435593,-151.0,0.00019621,2]
[387120692,1758587435602,-151.0,0.00019621,2]
[387120694,1758587435612,-480.0,0.00019621,2]
[387120696,1758587435622,-480.0,0.00019621,2]
[387120698,1758587435632,-480.0,0.00019621,2]
[387120700,1758587435641,-283.27714966,0.00019621,2]
[387120702,1758587435650,-500.03275792,0.00019621,2]
[387120704,1758587435660,-480.0,0.00019621,2]
[387120706,1758587435669,-480.0,0.00019621,2]
[387120708,1758587435681,-480.0,0.00019621,2]
[387120710,1758587435690,-2070.87,0.00019621,2]
[387120712,1758587435700,-480.0,0.00019621,2]
[387120714,1758587435709,-480.0,0.00019621,2]
[387120716,1758587435719,-480.0,0.00019621,2]
[387120718,1758587435730,-480.0,0.00019622,2]
[387120721,1758587435747,-202.89285408,0.00019671,2]
[387120723,1758587435757,-465.12265483,0.00019723,2]
[387120725,1758587435767,-207.21198714,0.00019723,2]
[387120727,1758587435776,-1858.63012869,0.00019723,2]
[387120729,1758587435785,-828.01910061,0.00019723,2]
[387120731,1758587435794,-500.0,0.00019773,2]
[387120733,1758587435803,-151.0,0.00019773,2]
[387120735,1758587435813,-415.48,0.00019796,2]
[387120737,1758587435823,-151.0,0.00019796,2]
[387120738,1758587435835,-168.0,0.00019873,2]
[387120741,1758587435845,-480.0,0.00019891,2]
[387120742,1758587435854,-504.04,0.00019891,2]
[387120744,1758587435864,-480.0,0.00019892,2]
[387120746,1758587435873,-480.0,0.00019892,2]
[387120748,1758587435883,-480.0,0.00019892,2]
[387120750,1758587435892,-480.0,0.00019892,2]
[387120752,1758587435902,-480.0,0.00019892,2]
[387120754,1758587435911,-480.0,0.00019892,2]
[387120756,1758587435921,-480.0,0.00019892,2]
[387120758,1758587435932,-480.0,0.00019892,2]
[387120760,1758587435941,-480.0,0.00019892,2]
[387120762,1758587435950,-480.0,0.00019892,2]
[387120764,1758587435960,-480.0,0.00019892,2]
[387120766,1758587435970,-168.0,0.00019892,2]
[387120768,1758587435980,-282.71377521,0.00019893,2]
[387120770,1758587435989,-480.0,0.00019893,2]
[387120772,1758587435999,-480.0,0.00019893,2]
[387120774,1758587436008,-480.0,0.00019893,2]
[387120776,1758587436017,-480.0,0.00019893,2]
[387120778,1758587436027,-728.79,0.00019893,2]
[387120780,1758587436036,-480.0,0.00019893,2]
[387120782,1758587436047,-480.0,0.00019893,2]
[387120784,1758587436057,-495.97,0.00019893,2]
[387120786,1758587436067,-480.0,0.00019893,2]
[387120788,1758587436076,-500.0,0.00019894,2]
[387120790,1758587436086,-198.0,0.00019894,2]
[387120792,1758587436095,-500.0,0.00019894,2]
[387120794,1758587436104,-161.86067842,0.00019894,2]
[387120796,1758587436114,-480.0,0.00019894,2]
[387120798,1758587436123,-480.0,0.00019894,2]
[387120800,1758587436134,-480.0,0.00019894,2]
[387120802,1758587436143,-480.0,0.00019894,2]
[387120804,1758587436153,-480.0,0.00019895,2]
[387120806,1758587436163,-480.0,0.00019895,2]
[387120808,1758587436172,-2070.87,0.00019895,2]
[387120810,1758587436185,-480.0,0.00019895,2]
[387120813,1758587436197,-480.0,0.00019895,2]
[387120815,1758587436210,-480.0,0.00019895,2]
[387120817,1758587436223,-480.0,0.00019896,2]
[387120820,1758587436235,-4158.74469062,0.000199,2]
[387120822,1758587436248,-184.93101885,0.00019914,2]
[387120824,1758587436259,-168.0,0.00019917,2]
[387120826,1758587436269,-19349.0,0.0002,7]
[387120828,1758587436280,-160.0,0.0002,7]
[387120831,1758587436292,-251.338,0.0002,7]
[387120833,1758587436303,-168.0,0.00020081,2]
[387120835,1758587436314,-1000.0,0.00020121,2]
[387120837,1758587436326,-500.0,0.00020121,2]
[387120839,1758587436338,-1000.0,0.00020121,2]
[387120841,1758587436350,-869.53540277,0.00020121,2]
[387120843,1758587436361,-521.49044249,0.00020121,2]
[387120845,1758587436373,-1000.0,0.00020121,2]
[387120848,1758587436385,-1000.0,0.00020121,2]
[387120850,1758587436397,-1000.0,0.00020121,2]
[387120852,1758587436409,-1000.0,0.00020121,2]
[387120854,1758587436422,-500.0,0.00020121,2]
[387120857,1758587436434,-1000.0,0.00020121,2]
[387120859,1758587436445,-1000.0,0.00020121,2]
[387120861,1758587436457,-1000.0,0.00020121,2]
[387120863,1758587436469,-1000.0,0.00020121,2]
[387120865,1758587436480,-1000.0,0.00020121,2]
[387120868,1758587436491,-6.96766609,0.00020121,2]
[387120870,1758587436507,-993.03233391,0.00020121,2]
[387120872,1758587436518,-688.84353114,0.00020121,2]
[387120875,1758587436531,-1000.0,0.00020121,2]
[387120877,1758587436543,-501.18299892,0.00020121,2]
[387120879,1758587436554,-1000.0,0.00020121,2]
[387120881,1758587436566,-1000.0,0.00020121,2]
[387120883,1758587436576,-1000.0,0.00020121,2]
[387120885,1758587436589,-1000.0,0.00020121,2]
[387120887,1758587436600,-327.86990066,0.00020121,2]
[387120889,1758587436611,-168.0,0.00020134,2]
[387120891,1758587436622,-480.0,0.00020165,2]
[387120894,1758587436633,-504.04,0.00020165,2]
[387120896,1758587436645,-480.0,0.00020166,2]
[387120898,1758587436658,-480.0,0.00020166,2]
[387120900,1758587436671,-480.0,0.00020166,2]
[387120902,1758587436683,-480.0,0.00020166,2]
[387120905,1758587436697,-480.0,0.00020166,2]
[387120907,1758587436708,-480.0,0.00020166,2]
[387120909,1758587436720,-480.0,0.00020166,2]
[387120912,1758587436732,-480.0,0.00020166,2]
[387120914,1758587436743,-480.0,0.00020166,2]
[387120916,1758587436754,-480.0,0.00020166,2]
[387120918,1758587436766,-480.0,0.00020166,2]
[387120920,1758587436776,-112.0572939,0.00020167,2]
[387120922,1758587436788,-367.9427061,0.00020167,2]
[387120924,1758587436798,-480.0,0.00020167,2]
[387120926,1758587436808,-480.0,0.00020167,2]
[387120928,1758587436818,-480.0,0.00020167,2]
[387120930,1758587436831,-728.79,0.00020167,2]
[387120932,1758587436843,-480.0,0.00020167,2]
[387120935,1758587436855,-480.0,0.00020167,2]
[387120937,1758587436868,-495.97,0.00020167,2]
[387120939,1758587436880,-480.0,0.00020167,2]
[387120941,1758587436892,-500.0,0.00020168,2]
[387120943,1758587436903,-500.0,0.00020168,2]
[387120945,1758587436913,-480.0,0.00020168,2]
[387120947,1758587436924,-480.0,0.00020168,2]
[387120949,1758587436935,-480.0,0.00020168,2]
[387120952,1758587436946,-205.5535943,0.00020168,2]
[387121108,1758587438626,-151.0,0.00019344,2]
[387121111,1758587438639,-151.0,0.00019344,2]
[387121113,1758587438650,-151.0,0.00019344,2]
[387121115,1758587438662,-151.0,0.00019346,2]
[387121117,1758587438674,-151.0,0.00019347,2]
[387121119,1758587438685,-151.0,0.00019347,2]
[387121121,1758587438696,-151.0,0.00019473,2]
[387121124,1758587438707,-151.0,0.00019508,2]
[387121126,1758587438718,-151.0,0.00019508,2]
[387121128,1758587438729,-151.0,0.00019508,2]
[387121130,1758587438740,-151.0,0.00019508,2]
[387121132,1758587438750,-34.16080425,0.00020168,2]
[387121134,1758587438760,-480.0,0.00020169,2]
[387121136,1758587438769,-480.0,0.00020169,2]
[387121138,1758587438779,-2070.87,0.00020169,2]
[387121140,1758587438789,-480.0,0.00020169,2]
[387121142,1758587438798,-480.0,0.00020169,2]
[387121145,1758587438809,-480.0,0.00020169,2]
[387121148,1758587438818,-480.0,0.0002017,2]
[387121150,1758587438827,-222.3,0.00020194,2]
[387121152,1758587438837,-168.0,0.00020205,2]
[387121154,1758587438846,-168.0,0.00020217,2]
[387121156,1758587438855,-168.0,0.0002024,2]
[387121158,1758587438866,-480.0,0.00020439,2]
[387121160,1758587438875,-504.04,0.00020439,2]
[387121162,1758587438885,-480.0,0.0002044,2]
[387121178,1758587439027,-480.0,0.0002044,2]
[387121180,1758587439038,-480.0,0.0002044,2]
[387121182,1758587439047,-480.0,0.0002044,2]
[387121184,1758587439057,-480.0,0.0002044,2]
[387121186,1758587439066,-480.0,0.0002044,2]
[387121188,1758587439076,-293.86043028,0.0002044,2]
[387121190,1758587439085,-480.0,0.0002044,2]
[387121192,1758587439094,-480.0,0.0002044,2]
[387121194,1758587439104,-480.0,0.0002044,2]
[387121196,1758587439113,-480.0,0.0002044,2]
[387121198,1758587439122,-480.0,0.00020441,2]
[387121200,1758587439131,-480.0,0.00020441,2]
[387121202,1758587439140,-480.0,0.00020441,2]
[387121204,1758587439150,-480.0,0.00020441,2]
[387121206,1758587439160,-728.79,0.00020441,2]
[387121208,1758587439170,-480.0,0.00020441,2]
[387121210,1758587439180,-480.0,0.00020441,2]
[387121212,1758587439189,-495.97,0.00020441,2]
[387121214,1758587439199,-480.0,0.00020441,2]
[387121216,1758587439208,-500.0,0.00020442,2]
[387121217,1758587439218,-500.0,0.00020442,2]
[387121219,1758587439227,-480.0,0.00020442,2]
[387121221,1758587439236,-480.0,0.00020442,2]
[387121223,1758587439245,-480.0,0.00020443,2]
[387121225,1758587439255,-480.0,0.00020443,2]
[387121227,1758587439265,-2070.87,0.00020443,2]
[387121229,1758587439275,-480.0,0.00020443,2]
[387121231,1758587439284,-480.0,0.00020443,2]
[387121233,1758587439293,-480.0,0.00020443,2]
[387121235,1758587439303,-168.0,0.00020455,2]
[387121237,1758587439314,-168.0,0.00020462,2]
[387121239,1758587439323,-168.0,0.00020517,2]
[387121241,1758587439333,-168.58402946,0.00020524,2]
[387121243,1758587439342,-222.3,0.00020622,2]
[387121245,1758587439352,-1500.0,0.00020668,2]
[387121247,1758587439361,-506.29478123,0.00020668,2]
[387121249,1758587439371,-1500.0,0.00020668,2]
[387121251,1758587439380,-1500.0,0.00020668,2]
[387121253,1758587439390,-1500.0,0.00020668,2]
[387121255,1758587439399,-1106.69602647,0.00020668,2]
[387121257,1758587439408,-1500.0,0.00020668,2]
[387121259,1758587439417,-1500.0,0.00020668,2]
[387121261,1758587439427,-1500.0,0.00020668,2]
[387121263,1758587439435,-510.98863345,0.00020668,2]
[387121265,1758587439445,-1500.0,0.00020668,2]
[387121267,1758587439454,-1500.0,0.00020668,2]
[387121269,1758587439463,-1037.9384467,0.00020668,2]
[387121271,1758587439473,-1500.0,0.00020668,2]
[387121273,1758587439482,-480.0,0.00020713,2]
[387121275,1758587439491,-504.04,0.00020713,2]
[387121277,1758587439501,-480.0,0.00020714,2]
[387121279,1758587439511,-222.35239749,0.00020714,2]
[387121281,1758587439520,-480.0,0.00020714,2]
[387121283,1758587439529,-480.0,0.00020714,2]
[387121285,1758587439539,-480.0,0.00020714,2]
[387121287,1758587439548,-480.0,0.00020714,2]
[387121289,1758587439557,-480.0,0.00020714,2]
[387121291,1758587439566,-480.0,0.00020714,2]
[387121293,1758587439575,-480.0,0.00020715,2]
[387121294,1758587439585,-480.0,0.00020715,2]
[387121297,1758587439596,-480.0,0.00020715,2]
[387121298,1758587439609,-480.0,0.00020715,2]
[387121300,1758587439618,-728.79,0.00020715,2]
[387121302,1758587439628,-480.0,0.00020715,2]
[387121304,1758587439637,-480.0,0.00020715,2]
[387121306,1758587439647,-495.97,0.00020715,2]
[387121308,1758587439656,-480.0,0.00020715,2]
[387121310,1758587439665,-500.0,0.00020716,2]
[387121312,1758587439675,-500.0,0.00020716,2]
[387121314,1758587439684,-480.0,0.00020716,2]
[387121316,1758587439693,-480.0,0.00020716,2]
[387121318,1758587439702,-480.0,0.00020717,2]
[387121320,1758587439711,-480.0,0.00020717,2]
[387121322,1758587439721,-2070.87,0.00020717,2]
[387121324,1758587439730,-480.0,0.00020717,2]
[387121326,1758587439740,-480.0,0.00020717,2]
[387121328,1758587439749,-480.0,0.00020717,2]
[387121330,1758587439759,-153.0,0.00020747,2]
[387121332,1758587439768,-153.0,0.00020747,2]
[387121334,1758587439777,-153.0,0.00020747,2]
[387121336,1758587439787,-550.0,0.0002088,3]
[387121338,1758587439796,-981.0,0.00020955,2]
[387121340,1758587439806,-168.0,0.00020957,2]
[387121342,1758587439816,-4158.74469037,0.00020972,2]
[387121344,1758587439825,-480.0,0.00020987,2]
[387121346,1758587439835,-504.04,0.00020987,2]
[387121348,1758587439844,-480.0,0.00020988,2]
[387121350,1758587439853,-480.0,0.00020988,2]
[387121352,1758587439863,-480.0,0.00020988,2]
[387121354,1758587439872,-480.0,0.00020988,2]
[387121356,1758587439881,-480.0,0.00020988,2]
[387121358,1758587439890,-428.76,0.00020988,2]
[387121360,1758587439899,-480.0,0.00020988,2]
[387121362,1758587439909,-480.0,0.00020989,2]
[387121364,1758587439919,-480.0,0.00020989,2]
[387121366,1758587439929,-39.47488629,0.00020989,2]
[387121368,1758587439942,-440.52511371,0.00020989,2]
[387121370,1758587439951,-728.79,0.00020989,2]
[387121372,1758587439961,-480.0,0.00020989,2]
[387121374,1758587439970,-480.0,0.00020989,2]
[387121376,1758587439980,-495.97,0.00020989,2]
[387121378,1758587439990,-480.0,0.00020989,2]
[387121380,1758587440001,-500.0,0.0002099,2]
[387121382,1758587440011,-480.0,0.0002099,2]
[387121384,1758587440021,-480.0,0.0002099,2]
[387121386,1758587440031,-480.0,0.00020991,2]
[387121388,1758587440040,-480.0,0.00020991,2]
[387121390,1758587440050,-2070.87,0.00020991,2]
[387121392,1758587440060,-480.0,0.00020991,2]
[387121395,1758587440070,-480.0,0.00020991,2]
[387121398,1758587440079,-222.3,0.0002105,2]
[387121401,1758587440088,-978.0,0.00021086,2]
[387121403,1758587440097,-634.0,0.00021086,2]
[387121405,1758587440106,-2159.0,0.00021086,2]
[387121407,1758587440115,-410.0,0.00021086,2]
[387121410,1758587440125,-417.874,0.00021086,2]
[387121413,1758587440134,-500.0,0.00021216,2]
[387121416,1758587440143,-500.0,0.00021216,2]
[387121419,1758587440152,-500.0,0.00021216,2]
[387121422,1758587440161,-500.0,0.00021216,2]
[387121425,1758587440170,-500.0,0.00021216,2]
[387121428,1758587440180,-480.0,0.00021261,2]
[387121432,1758587440189,-504.04,0.00021261,2]
[387121435,1758587440198,-480.0,0.00021262,2]
[387121438,1758587440207,-211.35,0.00021262,2]
[387121441,1758587440217,-480.0,0.00021262,2]
[387121444,1758587440227,-480.0,0.00021262,2]
[387121447,1758587440236,-480.0,0.00021262,2]
[387121450,1758587440245,-480.0,0.00021263,2]
[387121453,1758587440254,-390.8127716,0.00021263,2]
[387121456,1758587440263,-480.0,0.00021263,2]
[387121459,1758587440273,-728.79,0.00021263,2]
[387121462,1758587440283,-480.0,0.00021263,2]
[387121465,1758587440292,-495.97,0.00021263,2]
[387121468,1758587440302,-480.0,0.00021263,2]
[387121471,1758587440312,-500.0,0.00021264,2]
[387121474,1758587440321,-480.0,0.00021264,2]
[387121476,1758587440330,-480.0,0.00021265,2]
[387121479,1758587440340,-480.0,0.00021265,2]
[387121481,1758587440349,-2070.87,0.00021265,2]
[387121484,1758587440359,-480.0,0.00021265,2]
[387121487,1758587440368,-480.0,0.00021265,2]
[387121490,1758587440377,-162.63006338,0.00021333,2]
[387121493,1758587440388,-554.0,0.00021438,2]
[387121496,1758587440397,-554.0,0.00021442,2]
[387121499,1758587440407,-222.3,0.00021477,2]
[387121502,1758587440416,-554.0,0.00021478,2]
[387121505,1758587440426,-500.0,0.00021529,2]
[387121508,1758587440435,-201.52432613,0.00021529,2]
[387121511,1758587440447,-298.47567387,0.00021529,2]
[387121514,1758587440456,-500.0,0.00021529,2]
[387121517,1758587440465,-451.62735059,0.00021529,2]
[387121520,1758587440475,-500.0,0.00021529,2]
[387121523,1758587440484,-500.0,0.00021529,2]
[387121525,1758587440494,-500.0,0.00021529,2]
[387121527,1758587440503,-500.0,0.00021529,2]
[387121530,1758587440512,-17.40804121,0.00021529,2]
[387121535,1758587440524,-482.59195879,0.00021529,2]
[387121537,1758587440533,-500.0,0.00021529,2]
[387121540,1758587440542,-500.0,0.00021529,2]
[387121543,1758587440551,-414.34955049,0.00021529,2]
[387121547,1758587440564,-85.65044951,0.00021529,2]
[387121550,1758587440573,-563.79,0.00021535,2]
[387121552,1758587440582,-62.362788,0.00021535,2]
[387121556,1758587440595,-441.677212,0.00021535,2]
[387121559,1758587440608,-347.33497307,0.00021536,2]
[387121563,1758587440619,-132.66502693,0.00021536,2]
[387121566,1758587440629,-480.0,0.00021536,2]
[387121568,1758587440638,-369.93497307,0.00021536,2]
[387121572,1758587440651,-110.06502693,0.00021536,2]
[387121575,1758587440661,-480.0,0.00021536,2]
[387121578,1758587440670,-480.0,0.00021537,2]
[387121581,1758587440681,-480.0,0.00021537,2]
[387121584,1758587440691,-728.79,0.00021537,2]
[387121587,1758587440701,-480.0,0.00021537,2]
[387121590,1758587440710,-495.97,0.00021537,2]
[387121593,1758587440720,-480.0,0.00021537,2]
[387121596,1758587440730,-500.0,0.00021538,2]
[387121599,1758587440739,-261.65,0.00021538,2]
[387121601,1758587440748,-480.0,0.00021539,2]
[387121604,1758587440757,-480.0,0.00021539,2]
[387121607,1758587440767,-2070.87,0.00021539,2]
[387121610,1758587440776,-480.0,0.00021539,2]
[387121613,1758587440786,-480.0,0.00021539,2]
[387121616,1758587440797,-500.0,0.00021547,2]
[387121619,1758587440807,-880.317279,0.00021562,2]
[387121622,1758587440816,-554.0,0.00021655,2]
[387121625,1758587440825,-554.0,0.0002168,2]
[387121628,1758587440835,-160.0,0.00021686,2]
[387121631,1758587440844,-233.55588323,0.00021689,2]
[387121634,1758587440854,-2486.45334485,0.00021689,2]
[387121637,1758587440864,-504.04,0.00021809,2]
[387121640,1758587440873,-480.0,0.0002181,2]
[387121643,1758587440883,-480.0,0.0002181,2]
[387121646,1758587440892,-480.0,0.0002181,2]
[387121649,1758587440902,-511.19,0.0002181,2]
[387121652,1758587440911,-480.0,0.00021811,2]
[387121655,1758587440921,-480.0,0.00021811,2]
[387121658,1758587440930,-728.79,0.00021811,2]
[387121661,1758587440940,-480.0,0.00021811,2]
[387121663,1758587440950,-495.97,0.00021811,2]
[387121666,1758587440959,-605.19150898,0.00021811,2]
[387121669,1758587440968,-500.0,0.00021812,2]
[387121672,1758587440977,-554.0,0.00021812,2]
[387121675,1758587440986,-480.0,0.00021813,2]
[387121678,1758587440995,-480.0,0.00021813,2]
[387121681,1758587441005,-2070.87,0.00021813,2]
[387121684,1758587441014,-572.69,0.00021813,2]
[387121687,1758587441023,-480.0,0.00021813,2]
[387121690,1758587441033,-554.0,0.00021873,2]
[387121693,1758587441043,-500.0,0.00021875,2]
[387121696,1758587441052,-500.0,0.00021875,2]
[387121699,1758587441061,-114.80096739,0.00021875,2]
[387121702,1758587441074,-385.19903261,0.00021875,2]
[387121705,1758587441083,-500.0,0.00021875,2]
[387121708,1758587441093,-329.480735,0.0002189,2]
[387121712,1758587441107,-170.519265,0.0002189,2]
[387121715,1758587441116,-500.0,0.0002189,2]
[387121717,1758587441126,-500.0,0.0002189,2]
[387121719,1758587441135,-554.0,0.00021891,2]
[387121721,1758587441144,-1203.26,0.00021902,2]
[387121723,1758587441153,-508.76632959,0.00021905,2]
[387121725,1758587441163,-500.0,0.00021905,2]
[387121727,1758587441172,-500.0,0.00021905,2]
[387121729,1758587441181,-500.0,0.00021905,2]
[387121731,1758587441191,-500.0,0.00021905,2]
[387121733,1758587441200,-500.0,0.00021905,2]
[387121736,1758587441209,-500.0,0.00021905,2]
[387121738,1758587441219,-500.0,0.00021905,2]
[387121740,1758587441229,-500.0,0.00021905,2]
[387121742,1758587441239,-500.0,0.00021905,2]
[387121744,1758587441248,-500.0,0.00021905,2]
[387121746,1758587441257,-500.0,0.00021905,2]
[387121748,1758587441267,-500.0,0.00021905,2]
[387121750,1758587441276,-500.0,0.00021905,2]
[387121752,1758587441286,-500.0,0.00021905,2]
[387121754,1758587441295,-157.70921839,0.00021905,2]
[387121756,1758587441305,-500.0,0.00021905,2]
[387121758,1758587441315,-500.0,0.00021905,2]
[387121760,1758587441326,-434.04799892,0.00021905,2]
[387121762,1758587441338,-65.95200108,0.00021905,2]
[387121764,1758587441348,-500.0,0.00021905,2]
[387121766,1758587441358,-500.0,0.00021905,2]
[387121768,1758587441368,-500.0,0.00021905,2]
[387121770,1758587441378,-430.31380382,0.00021905,2]
[387121772,1758587441388,-500.0,0.00021905,2]
[387121775,1758587441398,-500.0,0.00021905,2]
[387121778,1758587441407,-500.0,0.00021905,2]
[387121780,1758587441417,-500.0,0.00021905,2]
[387121784,1758587441428,-500.0,0.00021905,2]
[387121787,1758587441441,-222.3,0.00021905,3]
[387121788,1758587441451,-174.96649909,0.00021911,2]
[387121790,1758587441460,-500.0,0.00021911,2]
[387121792,1758587441469,-500.0,0.00021911,2]
[387121794,1758587441479,-153.0,0.00021918,2]
[387121796,1758587441489,-153.0,0.00021918,2]
[387121798,1758587441498,-153.0,0.00021918,2]
[387121800,1758587441508,-153.0,0.00021918,2]
[387121803,1758587441518,-153.0,0.00021918,2]
[387121805,1758587441528,-521.89758449,0.00022,7]
[387121807,1758587441539,-1359.51241551,0.00022,7]
[387121809,1758587441549,-554.0,0.00022005,2]
[387121811,1758587441560,-4158.74469037,0.00022044,2]
[387121813,1758587441569,-918.65400761,0.00022077,2]
[387121815,1758587441580,-81.34599239,0.00022077,2]
[387121817,1758587441589,-500.0,0.00022077,2]
[387121819,1758587441600,-504.04,0.00022083,2]
[387121821,1758587441611,-480.0,0.00022084,2]
[387121823,1758587441620,-480.0,0.00022084,2]
[387121825,1758587441630,-480.0,0.00022084,2]
[387121827,1758587441639,-480.0,0.00022085,2]
[387121829,1758587441648,-480.0,0.00022085,2]
[387121831,1758587441658,-514.61400761,0.00022085,2]
[387121833,1758587441669,-214.17599239,0.00022085,2]
[387121835,1758587441678,-480.0,0.00022085,2]
[387121837,1758587441689,-495.97,0.00022085,2]
[387121839,1758587441701,-500.0,0.00022086,2]
[387121841,1758587441720,-480.0,0.00022087,2]
[387121843,1758587441733,-480.0,0.00022087,2]
[387121845,1758587441742,-2070.87,0.00022087,2]
[387121847,1758587441751,-480.0,0.00022087,2]
[387121849,1758587441761,-554.0,0.00022089,2]
[387121851,1758587441770,-196.4253354,0.00022103,2]
[387121853,1758587441779,-554.0,0.00022107,2]
[387121855,1758587441788,-1891.18969746,0.0002211,3]
[387121857,1758587441800,-267.0,0.0002211,3]
[387121860,1758587441811,-11810.10288439,0.0002211,3]
[387121862,1758587441821,-160.0,0.0002211,3]
[387121864,1758587441830,-554.0,0.00022165,2]
[387121865,1758587441839,-595.668,0.00022173,2]
[387121867,1758587441848,-554.0,0.00022214,2]
[387121869,1758587441858,-4048.79253573,0.00022316,2]
[387121871,1758587441867,-222.3,0.00022333,3]
[387121873,1758587441876,-504.04,0.00022357,2]
[387121875,1758587441886,-480.0,0.00022358,2]
[387121877,1758587441895,-375.44282098,0.00022358,2]
[387121879,1758587441904,-399.90248796,0.00022358,2]
[387121881,1758587441915,-480.0,0.00022359,2]
[387121884,1758587441924,-480.0,0.00022359,2]
[387121886,1758587441934,-728.79,0.00022359,2]
[387121888,1758587441944,-480.0,0.00022359,2]
[387121890,1758587441953,-495.97,0.00022359,2]